bitfinex-derivatives/quotes_BTCF0:USTF0_20250208
["timestamp","ask_amount","ask_price","bid_price","bid_amount"]
[1738984916113,0.54734177,96831.0,96830.0,0.00015492]
[1738984919628,0.49712,96831.0,96830.0,0.00015492]
[1738984920519,0.49712,96831.0,96817.0,0.18463003]
[1738984920722,0.08069302,96830.0,96817.0,0.18463003]
[1738984920925,0.2064992,96829.0,96817.0,0.18463003]
[1738984921125,0.08069302,96830.0,96817.0,0.18463003]
[1738984921429,0.206522,96818.0,96817.0,0.18463003]
[1738984923429,0.206522,96818.0,96817.0,0.18763003]
[1738984923625,0.206522,96818.0,96817.0,0.19063003]
[1738984924127,0.206522,96818.0,96817.0,0.006]
[1738984926920,0.21678262,96818.0,96817.0,0.006]
[1738984929937,0.28706262,96818.0,96817.0,0.006]
[1738984932140,0.21678262,96818.0,96817.0,0.006]
[1738984932336,0.28706262,96818.0,96817.0,0.006]
[1738984934838,0.64786262,96818.0,96817.0,0.006]
[1738984935038,0.44134062,96818.0,96812.0,0.18463003]
[1738984935247,0.2065421,96809.0,96807.0,0.24613482]
[1738984935544,0.0961,96808.0,96807.0,0.24613482]
[1738984936139,0.16638,96808.0,96807.0,0.24613482]
[1738984936431,0.3729233,96808.0,96807.0,0.005]
[1738984938040,0.3729233,96808.0,96807.0,0.011]
[1738984939533,0.7337233,96808.0,96807.0,0.011]
[1738984940342,0.2065583,96801.0,96800.0,0.1]
[1738984941241,0.5673583,96801.0,96800.0,0.1]
[1738984941939,0.5673583,96801.0,96800.0,0.109]
[1738984942639,0.5683583,96801.0,96800.0,0.116]
[1738984942835,0.3618,96801.0,96781.0,0.45273432]
[1738984943039,0.2065766,96793.0,96781.0,0.45273432]
[1738984943349,0.07032,96792.0,96781.0,0.45273432]
[1738984943847,0.2065826,96790.0,96781.0,0.45273432]
[1738984944036,0.07032,96792.0,96781.0,0.25513482]
[1738984944345,0.2065973,96783.0,96781.0,0.014]
[1738984945747,0.2065973,96783.0,96781.0,0.009]
[1738984945935,0.2065973,96783.0,96781.0,0.012]
[1738984946245,0.2065973,96783.0,96781.0,0.003]
[1738984946448,0.2085973,96783.0,96781.0,0.012]
[1738984947252,0.2085973,96783.0,96781.0,0.003]
[1738984947551,0.2085973,96783.0,96781.0,0.004]
[1738984947942,0.3608,96782.0,96781.0,0.004]
[1738984948945,0.3608,96782.0,96781.0,0.001]
[1738984949151,0.3618,96782.0,96781.0,0.004]
[1738984949350,0.3618,96782.0,96781.0,0.011]
[1738984949554,0.3618,96782.0,96781.0,0.008]
[1738984949754,0.3628,96782.0,96781.0,0.011]
[1738984949958,0.2066222,96771.0,96770.0,0.2162]
[1738984950252,0.2066385,96764.0,96761.0,0.24613482]
[1738984950658,0.2066414,96762.0,96761.0,0.24613482]
[1738984952556,0.2076414,96762.0,96761.0,0.24613482]
[1738984953057,0.2086414,96762.0,96761.0,0.24713482]
[1738984953945,0.2086414,96762.0,96761.0,0.001]
[1738984957358,0.002,96762.0,96751.0,0.2162]
[1738984957562,0.2066626,96752.0,96751.0,0.2162]
[1738984957860,0.2774226,96752.0,96751.0,0.2162]
[1738984958757,0.2784226,96752.0,96751.0,0.2162]
[1738984959264,0.2784226,96752.0,96751.0,0.2172]
[1738984959856,0.2784226,96752.0,96751.0,0.2162]
[1738984960060,0.2794226,96752.0,96751.0,0.2172]
[1738984962159,0.2794226,96752.0,96751.0,0.001]
[1738984963456,0.2793826,96752.0,96751.0,0.001]
[1738984963767,0.002,96752.0,96751.0,0.001]
[1738984963962,0.002,96752.0,96751.0,0.3618]
[1738984967164,0.002,96752.0,96704.0,0.00124]
[1738984967165,0.3608,96742.0,96704.0,0.00124]
[1738984967369,0.2067605,96707.0,96704.0,0.00124]
[1738984967568,0.3608,96705.0,96704.0,0.01021809]
[1738984967872,0.43248,96705.0,96697.0,0.24613482]
[1738984968066,0.79328,96705.0,96697.0,0.24613482]
[1738984968468,0.2067716,96701.0,96697.0,0.24613482]
[1738984969875,0.2077716,96701.0,96697.0,0.24613482]
[1738984971079,0.2087716,96701.0,96683.0,0.0325]
[1738984971459,0.2087716,96701.0,96693.0,0.2067879]
[1738984972070,0.2067716,96701.0,96693.0,0.2067879]
[1738984973965,0.9283716,96701.0,96693.0,0.2067879]
[1738984975268,0.9283716,96701.0,96690.0,0.1232583]
[1738984975760,0.2067929,96691.0,96690.0,0.1232583]
[1738984975965,0.2067929,96691.0,96685.0,0.2068052]
[1738984975966,0.5675929,96691.0,96685.0,0.2068052]
[1738984976167,0.2067956,96690.0,96685.0,0.2068052]
[1738984976369,0.2067956,96690.0,96683.0,0.0325]
[1738984976571,0.2067956,96690.0,96686.0,0.2068029]
[1738984978075,0.2077956,96690.0,96686.0,0.2068029]
[1738984978374,0.2067976,96689.0,96686.0,0.2068029]
[1738984979163,0.3608,96687.0,96686.0,0.2068029]
[1738984981377,0.3618,96687.0,96686.0,0.2068029]
[1738984981973,0.3628,96687.0,96686.0,0.2068029]
[1738984984483,0.3628,96687.0,96683.0,0.0325]
[1738984984677,0.3608,96684.0,96683.0,0.2393102]
[1738984986079,0.3618,96684.0,96683.0,0.2393102]
[1738984988180,0.3628,96684.0,96683.0,0.2393102]
[1738984988381,0.5696081,96684.0,96683.0,0.2393102]
[1738984990082,0.3628,96684.0,96683.0,0.2393102]
[1738984990279,0.4130868,96684.0,96683.0,0.2393102]
[1738984990676,0.4130868,96684.0,96683.0,0.2068102]
[1738985003585,0.6198949,96684.0,96682.0,0.2162]
[1738985003784,0.2068123,96683.0,96674.0,0.08090261]
[1738985003986,0.3608,96675.0,96674.0,0.08090261]
[1738985004291,0.3608,96675.0,96674.0,0.2068295]
[1738985005192,0.3618,96675.0,96674.0,0.2068295]
[1738985005385,0.3618,96675.0,96674.0,0.21698345]
[1738985005684,0.3618,96675.0,96674.0,0.2068295]
[1738985006385,0.59920763,96675.0,96674.0,0.2068295]
[1738985008885,0.57858008,96675.0,96674.0,0.2068295]
[1738985010782,0.93938008,96675.0,96674.0,0.2068295]
[1738985012090,0.7738868,96675.0,96674.0,0.2068295]
[1738985013391,0.8455668,96675.0,96674.0,0.2068295]
[1738985016092,0.8455059,96675.0,96674.0,0.2068295]
[1738985016685,0.8455059,96675.0,96667.0,0.01049572]
[1738985016984,0.8455059,96675.0,96665.0,0.08090261]
[1738985017181,0.3608,96666.0,96665.0,0.28775131]
[1738985017390,0.3608,96666.0,96665.0,0.2068487]
[1738985017791,0.41354591,96675.0,96674.0,0.2068295]
[1738985018086,0.4120868,96675.0,96674.0,0.2068295]
[1738985018287,0.4130868,96675.0,96674.0,0.2068295]
[1738985019592,0.4130868,96675.0,96665.0,0.14275808]
[1738985019795,0.4110868,96675.0,96674.0,0.2068295]
[1738985020100,0.4120868,96675.0,96674.0,0.2068295]
[1738985020496,0.4130868,96675.0,96674.0,0.2068295]
[1738985021604,0.3628,96675.0,96674.0,0.2068295]
[1738985028203,0.002,96675.0,96674.0,0.2068295]
[1738985034709,0.05229216,96675.0,96674.0,0.2068295]
[1738985036106,0.05229216,96675.0,96666.0,0.2162]
[1738985036306,0.3608,96667.0,96666.0,0.4230456]
[1738985037514,0.3618,96667.0,96666.0,0.4230456]
[1738985038313,0.3628,96667.0,96666.0,0.4230456]
[1738985039310,0.3628,96667.0,96666.0,0.2068456]
[1738985048219,0.7236,96667.0,96666.0,0.2068456]
[1738985048811,0.77389638,96667.0,96666.0,0.2068456]
[1738985050420,0.41309638,96667.0,96666.0,0.2068456]
[1738985051614,0.2068513,96664.0,96659.0,0.2068611]
[1738985052311,0.41309638,96667.0,96659.0,0.2068611]
[1738985052507,0.2068535,96663.0,96659.0,0.2068611]
[1738985054223,0.2078535,96663.0,96659.0,0.21740165]
[1738985055324,0.2088535,96663.0,96659.0,0.21740165]
[1738985057622,0.2088535,96663.0,96659.0,0.01054055]
[1738985057828,0.0517297,96633.0,96619.0,0.01025819]
[1738985058029,0.9285493,96618.0,96617.0,0.27355053]
[1738985058323,1.0045093,96618.0,96617.0,0.27355053]
[1738985059529,1.01565182,96618.0,96617.0,0.27355053]
[1738985059727,1.01665182,96618.0,96617.0,0.27355053]
[1738985060830,1.01665182,96618.0,96601.0,0.43100837]
[1738985060831,0.80970252,96618.0,96601.0,0.00084]
[1738985061130,0.80970252,96618.0,96600.0,0.1]
[1738985061131,0.3608,96602.0,96600.0,0.1]
[1738985061532,0.5677841,96602.0,96600.0,0.1]
[1738985062833,0.5687841,96602.0,96600.0,0.1]
[1738985063725,0.5697841,96602.0,96600.0,0.1]
[1738985065723,0.3628,96602.0,96600.0,0.1]
[1738985065927,0.3628,96602.0,96600.0,0.3069874]
[1738985068644,0.3608,96601.0,96600.0,0.3069874]
[1738985070336,0.3618,96601.0,96600.0,0.3069874]
[1738985070537,0.3628,96601.0,96600.0,0.3069874]
[1738985076147,0.3608,96601.0,96600.0,0.3069874]
[1738985076448,0.3628,96601.0,96600.0,0.3069874]
[1738985076744,0.002,96601.0,96600.0,0.3069874]
[1738985082048,0.3608,96620.0,96600.0,0.13]
[1738985082246,0.3608,96620.0,96610.0,0.12329442]
[1738985082554,0.3608,96620.0,96619.0,0.2069472]
[1738985083049,0.3618,96620.0,96619.0,0.2069472]
[1738985084955,0.3618,96620.0,96619.0,0.2149472]
[1738985085155,0.3628,96620.0,96619.0,0.2149472]
[1738985085658,0.3628,96620.0,96619.0,0.2239472]
[1738985086154,0.3628,96620.0,96619.0,0.23413532]
[1738985087353,0.3628,96620.0,96619.0,0.2239472]
[1738985092458,0.3628,96620.0,96619.0,0.2219472]
[1738985092854,0.3618,96620.0,96619.0,0.2209472]
[1738985093060,0.3628,96620.0,96619.0,0.2209472]
[1738985107068,0.3628,96620.0,96619.0,0.014]
[1738985108877,0.3618,96620.0,96619.0,0.01]
[1738985110465,0.3608,96620.0,96619.0,0.007]
[1738985111071,0.3608,96620.0,96619.0,0.006]
[1738985111276,0.41112366,96620.0,96619.0,0.006]
[1738985111973,0.41112366,96620.0,96610.0,0.1234497]
[1738985112179,0.3608,96611.0,96610.0,0.1234497]
[1738985112364,0.3608,96611.0,96610.0,0.00015528]
[1738985113263,0.3608,96611.0,96610.0,0.00315528]
[1738985113465,0.3608,96611.0,96610.0,0.01015528]
[1738985113466,0.3618,96611.0,96610.0,0.01015528]
[1738985114075,0.3628,96611.0,96610.0,0.01015528]
[1738985123475,0.3628,96611.0,96600.0,0.1]
[1738985123675,0.3608,96601.0,96600.0,0.10806221]
[1738985125578,0.3618,96601.0,96600.0,0.11306221]
[1738985126275,0.5687857,96601.0,96600.0,0.104]
[1738985126481,0.5697857,96601.0,96600.0,0.105]
[1738985127580,0.5697857,96601.0,96600.0,0.01868475]
[1738985131692,0.62012185,96601.0,96600.0,0.01868475]
[1738985135281,0.41313615,96601.0,96600.0,0.01868475]
[1738985135483,0.05233615,96601.0,96600.0,0.01868475]
[1738985135995,0.05233615,96601.0,96600.0,0.00087859]
[1738985136290,0.05233615,96601.0,96600.0,0.00932215]
[1738985136492,0.05233615,96601.0,96600.0,0.00087859]
[1738985137785,0.002,96601.0,96600.0,0.00087859]
[1738985140795,0.002,96601.0,96600.0,0.00942207]
[1738985140992,0.002,96601.0,96600.0,0.001]
[1738985141187,0.001,96601.0,96600.0,0.001]
[1738985141392,0.002,96601.0,96600.0,0.001]
[1738985141796,0.001,96601.0,96600.0,0.001]
[1738985142096,0.002,96601.0,96600.0,0.001]
[1738985142288,0.001,96601.0,96600.0,0.001]
[1738985142793,0.002,96601.0,96600.0,0.001]
[1738985143888,0.001,96601.0,96600.0,0.001]
[1738985144090,0.002,96601.0,96600.0,0.001]
[1738985186022,0.002,96601.0,96600.0,0.3618]
[1738985191724,0.15478194,96613.0,96601.0,0.2069851]
[1738985191923,0.15478194,96613.0,96612.0,0.2069621]
[1738985193521,0.001,96613.0,96612.0,0.2069621]
[1738985195717,0.3608,96617.0,96614.0,0.206956]
[1738985196028,0.3608,96617.0,96612.0,0.002]
[1738985196222,0.3608,96617.0,96616.0,0.2069536]
[1738985198724,0.3608,96617.0,96616.0,0.2079536]
[1738985201022,0.3608,96617.0,96616.0,0.001]
[1738985201221,0.3608,96617.0,96616.0,0.2079536]
[1738985204123,0.411118,96617.0,96616.0,0.2079536]
[1738985214536,0.18585034,96620.0,96616.0,0.001]
[1738985214742,0.36095528,96629.0,96628.0,0.2069279]
[1738985214743,0.00015528,96629.0,96628.0,0.2069279]
[1738985216432,0.00315528,96629.0,96628.0,0.2069279]
[1738985217534,0.00615528,96629.0,96628.0,0.2069279]
[1738985218644,0.00615528,96629.0,96628.0,0.21560638]
[1738985219744,0.00615528,96629.0,96628.0,0.27840638]
[1738985222245,0.3608,96639.0,96638.0,0.2069065]
[1738985223352,0.3678,96639.0,96638.0,0.2069065]
[1738985223550,0.3738,96639.0,96638.0,0.2069065]
[1738985224355,0.013,96639.0,96638.0,0.2069065]
[1738985225743,0.013,96639.0,96638.0,0.2229048]
[1738985226044,0.00015528,96648.0,96646.0,0.2068888]
[1738985228051,0.00915528,96648.0,96646.0,0.2078888]
[1738985228651,0.01615528,96648.0,96646.0,0.2078888]
[1738985233346,0.00915528,96648.0,96646.0,0.2068888]
[1738985233554,0.00215528,96648.0,96646.0,0.2068888]
[1738985233865,0.00415528,96648.0,96646.0,0.2068888]
[1738985247563,0.00415528,96648.0,96647.0,0.01614764]
[1738985248656,0.00215528,96648.0,96647.0,0.01614764]
[1738985248861,0.00615528,96648.0,96647.0,0.01614764]
[1738985249864,0.00615528,96648.0,96647.0,0.22303484]
[1738985257268,0.00615528,96648.0,96647.0,0.2229194]
[1738985262475,0.00615528,96648.0,96647.0,0.47120046]
[1738985263086,0.00615528,96648.0,96647.0,0.47133748]
[1738985263577,0.00615528,96648.0,96647.0,0.45516826]
[1738985263783,0.00615528,96648.0,96647.0,0.47133749]
[1738985265577,0.00615528,96648.0,96647.0,0.47133753]
[1738985265983,0.00615528,96648.0,96647.0,0.22305647]
[1738985271369,0.00615528,96648.0,96647.0,0.2068872]
[1738985271576,0.00615528,96648.0,96647.0,0.22305649]
[1738985272383,0.00615528,96648.0,96647.0,0.2068872]
[1738985273287,0.00615528,96648.0,96647.0,0.22305649]
[1738985274186,0.00615528,96648.0,96647.0,0.2068872]
[1738985274384,0.00615528,96648.0,96647.0,0.2230565]
[1738985278193,0.00615528,96648.0,96647.0,0.2489278]
[1738985280685,0.00615528,96648.0,96647.0,0.49688972]
[1738985281482,0.00615528,96648.0,96647.0,0.49688949]
[1738985284695,0.00615528,96648.0,96647.0,0.24892757]
[1738985287694,0.00615528,96648.0,96647.0,0.24892627]
[1738985287999,0.00615528,96648.0,96647.0,0.55928346]
[1738985290298,0.00415528,96648.0,96647.0,0.55928346]
[1738985292308,0.00415528,96648.0,96647.0,0.57471596]
[1738985293213,0.00415528,96648.0,96647.0,0.57471577]
[1738985297301,0.00415528,96648.0,96647.0,0.54884569]
[1738985298303,0.00415528,96648.0,96647.0,0.57471577]
[1738985302807,0.00415528,96648.0,96647.0,0.53267689]
[1738985303107,0.00415528,96648.0,96647.0,0.57471552]
[1738985304121,0.00415528,96648.0,96647.0,0.24892583]
[1738985308810,0.00415528,96648.0,96647.0,0.24892588]
[1738985310419,0.00415528,96648.0,96647.0,0.22305592]
[1738985311018,0.00415528,96648.0,96647.0,0.54513963]
[1738985312614,0.00415528,96648.0,96647.0,0.5451396]
[1738985314225,0.00115528,96648.0,96647.0,0.5451396]
[1738985314417,0.00515528,96648.0,96647.0,0.5451396]
[1738985318629,0.00515528,96648.0,96647.0,0.22305589]
[1738985320426,0.00515528,96648.0,96647.0,0.22290823]
[1738985320818,0.00515528,96648.0,96647.0,0.22290606]
[1738985322527,0.00515528,96648.0,96647.0,0.53293993]
[1738985323924,0.15507493,96669.0,96656.0,0.2068678]
[1738985324126,0.15507493,96669.0,96656.0,0.22288666]
[1738985324826,0.0001552,96666.0,96656.0,0.22288666]
[1738985326128,0.0001552,96666.0,96656.0,0.22388666]
[1738985326129,0.1095,96657.0,96656.0,0.22388666]
[1738985327424,0.1095,96657.0,96656.0,0.2078678]
[1738985327926,0.1095,96657.0,96656.0,0.21728806]
[1738985328132,0.013,96657.0,96656.0,0.21728806]
[1738985328531,0.013,96657.0,96656.0,0.23325963]
[1738985329733,0.013,96657.0,96656.0,0.23327516]
[1738985333734,0.013,96657.0,96656.0,0.21728806]
[1738985334132,0.013,96657.0,96656.0,0.23325497]
[1738985334331,0.013,96657.0,96656.0,0.21728806]
[1738985335038,0.013,96657.0,96656.0,0.28792806]
[1738985335741,0.013,96657.0,96656.0,0.30391015]
[1738985340449,0.013,96657.0,96656.0,0.92967079]
[1738985341234,0.013,96657.0,96656.0,0.9136887]
[1738985342249,0.013,96657.0,96656.0,0.92967326]
[1738985347644,0.013,96657.0,96656.0,0.30391262]
[1738985349142,0.013,96657.0,96656.0,0.28792806]
[1738985351243,0.013,96657.0,96656.0,0.30390855]
[1738985353452,0.013,96657.0,96656.0,0.61815267]
[1738985357660,0.013,96657.0,96656.0,0.61817154]
[1738985358360,0.013,96657.0,96656.0,0.60217218]
[1738985360371,0.013,96657.0,96656.0,0.61815803]
[1738985362270,0.013,96657.0,96656.0,0.60217218]
[1738985365474,0.013,96657.0,96656.0,0.97163299]
[1738985365680,0.013,96657.0,96656.0,1.33243299]
[1738985366971,0.013,96657.0,96656.0,0.69412519]
[1738985367183,0.2198656,96657.0,96656.0,0.68470493]
[1738985368980,0.27016427,96657.0,96656.0,0.001]
[1738985369181,0.206888,96647.0,96645.0,0.18601704]
[1738985369376,0.4243,96646.0,96645.0,0.18601704]
[1738985369569,0.4243,96646.0,96645.0,0.13611704]
[1738985370676,0.4253,96646.0,96645.0,0.13611704]
[1738985371077,0.4273,96646.0,96645.0,0.13611704]
[1738985372286,0.4583,96646.0,96645.0,0.13611704]
[1738985374176,0.46779329,96646.0,96645.0,0.13611704]
[1738985374378,0.46779329,96646.0,96640.0,0.24802273]
[1738985374576,0.3608,96643.0,96636.0,0.08100242]
[1738985375675,0.3608,96643.0,96635.0,0.2069118]
[1738985375875,0.3608,96643.0,96636.0,0.002]
[1738985376782,0.3608,96643.0,96635.0,0.2069118]
[1738985376976,0.3608,96643.0,96635.0,0.2089118]
[1738985376977,0.3608,96636.0,96635.0,0.2089118]
[1738985377176,0.3608,96636.0,96635.0,0.002]
[1738985377573,0.5677106,96636.0,96635.0,0.002]
[1738985378375,0.5677106,96636.0,96630.0,0.00968993]
[1738985378580,0.5677106,96636.0,96626.0,0.08100242]
[1738985379086,0.5677106,96636.0,96635.0,0.001]
[1738985379586,0.5677106,96636.0,96629.0,0.00964873]
[1738985379885,0.57709585,96636.0,96629.0,0.01464873]
[1738985380386,0.57709585,96636.0,96635.0,0.001]
[1738985381477,0.5677106,96636.0,96635.0,0.001]
[1738985381882,0.5677106,96636.0,96629.0,0.01464873]
[1738985382380,0.5687106,96636.0,96635.0,0.001]
[1738985382977,0.5687106,96636.0,96629.0,0.01264873]
[1738985383184,0.5677106,96636.0,96629.0,0.01464873]
[1738985383585,0.5677106,96636.0,96635.0,0.001]
[1738985385074,0.5677106,96636.0,96629.0,0.22157353]
[1738985385479,0.5687106,96636.0,96629.0,0.21957353]
[1738985385684,0.5687106,96636.0,96635.0,0.001]
[1738985386083,0.5687106,96636.0,96629.0,0.21657353]
[1738985386280,0.2069129,96635.0,96629.0,0.22157353]
[1738985386681,0.2069129,96635.0,96629.0,0.21857353]
[1738985386980,0.2069129,96635.0,96629.0,0.21657353]
[1738985388282,0.2069129,96635.0,96629.0,0.21957353]
[1738985388484,0.2069129,96635.0,96629.0,0.22157353]
[1738985389286,0.2069165,96634.0,96629.0,0.22157353]
[1738985389483,0.3608,96636.0,96629.0,0.22157353]
[1738985389484,0.2069181,96633.0,96629.0,0.22157353]
[1738985391194,0.2069181,96633.0,96629.0,0.21857353]
[1738985391386,0.2069181,96633.0,96629.0,0.22157353]
[1738985410495,0.3608,96630.0,96629.0,0.22157353]
[1738985414004,0.3608,96630.0,96629.0,0.21857353]
[1738985414199,0.3608,96630.0,96629.0,0.22157353]
[1738985414403,0.3608,96630.0,96629.0,0.01464873]
[1738985414603,0.3608,96630.0,96629.0,0.00515528]
[1738985426419,0.3608,96631.0,96629.0,0.00515528]
[1738985427417,0.3608,96631.0,96629.0,0.00315528]
[1738985427717,0.3608,96631.0,96629.0,0.00515528]
[1738985428213,0.3608,96631.0,96629.0,0.20907948]
[1738985428411,0.3608,96631.0,96629.0,0.21207948]
[1738985430309,0.3608,96631.0,96629.0,0.46010221]
[1738985432711,0.3608,96631.0,96630.0,0.01609363]
[1738985434209,0.3608,96631.0,96630.0,0.01809363]
[1738985435214,0.3608,96631.0,96630.0,0.02109363]
[1738985435416,0.3608,96632.0,96630.0,0.02109363]
[1738985435620,0.3608,96632.0,96631.0,0.01609363]
[1738985436821,0.3608,96632.0,96631.0,0.01709363]
[1738985439025,0.3608,96632.0,96631.0,0.003]
[1738985444624,0.2069134,96635.0,96631.0,0.003]
[1738985444822,0.3608,96632.0,96631.0,0.003]
[1738985445724,0.2069134,96635.0,96631.0,0.002]
[1738985446029,0.3608,96632.0,96631.0,0.003]
[1738985446529,0.3608,96632.0,96631.0,0.002]
[1738985446732,0.3608,96632.0,96631.0,0.003]
[1738985448417,0.3608,96632.0,96631.0,0.001]
[1738985448631,0.3608,96632.0,96631.0,0.003]
[1738985451234,0.2069134,96635.0,96631.0,0.003]
[1738985451434,0.3608,96632.0,96631.0,0.003]
[1738985452236,0.3608,96632.0,96631.0,0.002]
[1738985452432,0.3608,96632.0,96631.0,0.003]
[1738985452936,0.2069212,96631.0,96629.0,1e-08]
[1738985454247,0.2069212,96631.0,96629.0,0.00300001]
[1738985455639,0.2069212,96631.0,96629.0,0.00500001]
[1738985455640,0.36152193,96631.0,96629.0,0.00500001]
[1738985457443,0.37128251,96631.0,96629.0,0.00500001]
[1738985459644,0.21668178,96631.0,96629.0,0.00500001]
[1738985461446,0.2069491,96618.0,96617.0,0.2069512]
[1738985461647,0.5677491,96618.0,96617.0,0.2069512]
[1738985461948,0.5677491,96618.0,96616.0,0.0316]
[1738985462653,0.5687491,96618.0,96617.0,0.008]
[1738985462948,0.5687491,96618.0,96610.0,0.24802273]
[1738985462949,0.2069641,96611.0,96610.0,0.24802273]
[1738985463555,0.2069705,96608.0,96607.0,0.0001552]
[1738985463742,0.5677705,96608.0,96607.0,0.0001552]
[1738985463944,0.3608,96608.0,96600.0,0.32902515]
[1738985464252,0.5677855,96601.0,96600.0,0.32902515]
[1738985464448,0.5677855,96601.0,96600.0,0.24802273]
[1738985465554,0.5687855,96601.0,96600.0,0.24802273]
[1738985465948,0.5687855,96601.0,96600.0,0.25102273]
[1738985465949,0.5697855,96601.0,96600.0,0.25102273]
[1738985467147,0.5697855,96601.0,96600.0,0.003]
[1738985476951,0.3628,96601.0,96600.0,0.003]
[1738985477163,0.3608,96609.0,96608.0,0.2069705]
[1738985478955,0.3618,96609.0,96608.0,0.2119705]
[1738985479563,0.3628,96609.0,96608.0,0.2149705]
[1738985480455,0.002,96609.0,96608.0,0.2149705]
[1738985482264,0.002,96609.0,96608.0,0.22477611]
[1738985484172,0.002,96609.0,96608.0,0.24095217]
[1738985484469,0.15460073,96632.0,96610.0,0.2069662]
[1738985484661,0.21612443,96649.0,96631.0,0.3608]
[1738985484867,0.21612443,96649.0,96648.0,0.2068849]
[1738985487459,0.22112443,96649.0,96648.0,0.2078849]
[1738985487970,0.22312443,96649.0,96648.0,0.21789661]
[1738985488272,0.007,96649.0,96648.0,0.2078849]
[1738985510595,0.007,96649.0,96648.0,0.5686849]
[1738985518708,0.007,96649.0,96648.0,0.58476608]
[1738985518908,0.007,96649.0,96648.0,0.5686849]
[1738985519107,0.007,96649.0,96648.0,0.58476456]
[1738985519614,0.007,96649.0,96648.0,0.5686849]
[1738985519803,0.007,96649.0,96648.0,0.58476729]
[1738985520004,0.007,96649.0,96648.0,0.5847673]
[1738985523314,0.00015528,96658.0,96648.0,0.3778824]
[1738985523515,0.00015528,96658.0,96657.0,0.2068656]
[1738985523714,0.00015528,96658.0,96657.0,0.222948]
[1738985523910,0.00015528,96658.0,96657.0,0.24881752]
[1738985524809,0.00915528,96658.0,96657.0,0.24881752]
[1738985525013,0.01515528,96658.0,96657.0,0.2078656]
[1738985525213,0.01515528,96658.0,96657.0,0.24990359]
[1738985525412,0.01515528,96658.0,96657.0,0.25090359]
[1738985525719,0.01515528,96658.0,96657.0,0.28280359]
[1738985525921,0.01515528,96658.0,96657.0,0.25693406]
[1738985527009,0.01515528,96658.0,96657.0,0.50474252]
[1738985527611,0.15516917,96671.0,96669.0,0.2068378]
[1738985528714,0.15516917,96671.0,96669.0,0.2078378]
[1738985528715,0.16416917,96671.0,96669.0,0.2078378]
[1738985529721,0.17316917,96671.0,96669.0,0.2088378]
[1738985531716,0.17316917,96671.0,96670.0,0.1855852]
[1738985531717,0.018,96671.0,96670.0,0.1855852]
[1738985533322,0.009,96671.0,96670.0,0.1865852]
[1738985534025,0.001,96671.0,96670.0,0.20175073]
[1738985534223,0.005,96671.0,96670.0,0.20175073]
[1738985534619,0.005,96671.0,96670.0,0.1855852]
[1738985537126,0.005,96671.0,96669.0,0.00984737]
[1738985537327,0.005,96671.0,96665.0,0.5676474]
[1738985539016,0.005,96671.0,96666.0,0.2068451]
[1738985539426,0.004,96671.0,96666.0,0.2068451]
[1738985539621,0.006,96671.0,96666.0,0.2068451]
[1738985540522,0.002,96671.0,96666.0,0.2068451]
[1738985540823,0.006,96671.0,96666.0,0.2068451]
[1738985541623,0.006,96671.0,96665.0,0.37046655]
[1738985541624,0.006,96671.0,96668.0,0.2068404]
[1738985542215,0.006,96671.0,96669.0,0.2068395]
[1738985548026,0.006,96671.0,96670.0,0.0161665]
[1738985553821,0.006,96671.0,96670.0,0.01616655]
[1738985554426,0.3668,96671.0,96658.0,0.1855852]
[1738985554627,0.567657,96661.0,96658.0,0.1855852]
[1738985556334,0.567657,96661.0,96654.0,0.25796258]
[1738985556335,0.567657,96661.0,96654.0,0.01015304]
[1738985556834,0.664257,96661.0,96654.0,0.01015304]
[1738985558129,0.666257,96661.0,96654.0,0.01015304]
[1738985569739,0.305457,96661.0,96654.0,0.01015304]
[1738985582741,0.240657,96661.0,96654.0,0.01015304]
[1738985582944,0.208857,96661.0,96654.0,0.01015304]
[1738985587949,0.208857,96661.0,96659.0,0.1855852]
[1738985591648,0.002,96661.0,96659.0,0.1855852]
[1738985591853,0.002,96661.0,96659.0,0.392446]
[1738985592356,0.002,96661.0,96659.0,0.753246]
[1738985592555,0.002,96661.0,96659.0,0.754126]
[1738985594357,0.002,96661.0,96660.0,0.36095519]
[1738985597663,0.002,96661.0,96660.0,0.56781439]
[1738985598356,0.002,96661.0,96660.0,0.20701439]
[1738985598561,0.002,96661.0,96660.0,0.56781439]
[1738985599158,0.002,96661.0,96660.0,0.81545169]
[1738985602065,0.002,96661.0,96660.0,0.56781439]
[1738985602964,0.002,96661.0,96660.0,0.20701439]
[1738985603270,0.002,96661.0,96660.0,0.56781439]
[1738985603770,0.15516917,96675.0,96673.0,0.2068299]
[1738985604266,0.15516917,96675.0,96674.0,0.0321]
[1738985604968,0.16116917,96675.0,96674.0,0.0321]
[1738985605171,0.16416917,96675.0,96674.0,0.0321]
[1738985605972,0.009,96675.0,96674.0,0.0321]
[1738985606469,0.008,96675.0,96674.0,0.0421171]
[1738985616576,0.008,96675.0,96674.0,0.0100171]
[1738985616775,0.008,96675.0,96673.0,0.2068299]
[1738985617177,0.008,96675.0,96673.0,0.21658932]
[1738985617386,0.0927,96690.0,96689.0,0.2067971]
[1738985617680,0.15516917,96698.0,96696.0,0.2067822]
[1738985617871,0.15516917,96698.0,96697.0,0.3608]
[1738985618583,0.11804069,96698.0,96697.0,0.3608]
[1738985619178,0.12704069,96698.0,96697.0,0.3618]
[1738985619580,0.12704069,96698.0,96697.0,0.3608]
[1738985619781,0.11804069,96698.0,96697.0,0.3608]
[1738985621184,0.1,96700.0,96697.0,0.3608]
[1738985621185,0.1,96700.0,96698.0,0.2067779]
[1738985622378,0.1,96700.0,96698.0,0.2077779]
[1738985625190,0.0315,96699.0,96698.0,0.2077779]
[1738985626276,0.0315,96699.0,96698.0,0.2067779]
[1738985626497,0.0315,96699.0,96698.0,0.2077779]
[1738985637710,0.0315,96699.0,96698.0,0.001]
[1738985641908,0.0315,96699.0,96688.0,0.00015519]
[1738985642299,0.2067829,96696.0,96688.0,0.00015519]
[1738985642509,0.063,96695.0,96688.0,0.00015519]
[1738985643114,0.063,96695.0,96688.0,0.00215519]
[1738985643507,0.063,96695.0,96688.0,0.00415519]
[1738985644320,0.063,96695.0,96688.0,0.00215519]
[1738985644516,0.3608,96689.0,96688.0,0.00315519]